bitfinex/quotes_ETHUSD_20250511
["timestamp","ask_amount","ask_price","bid_price","bid_amount"]
[1746981482735,0.776,2467.7,2466.9,8.04052763]
[1746981483056,0.13329539,2467.6,2466.9,0.04052763]
[1746981483257,0.13329539,2467.6,2466.9,0.04052368]
[1746981483658,0.13329539,2467.6,2466.9,8.04052368]
[1746981483861,0.13329539,2467.6,2466.9,0.04052368]
[1746981484063,0.13329539,2467.6,2466.9,8.04052368]
[1746981484470,0.13329539,2467.6,2466.9,8.0]
[1746981484871,0.13329539,2467.6,2467.0,0.04052267]
[1746981485257,0.13329539,2467.6,2467.2,8.0]
[1746981485591,0.776,2467.7,2467.2,8.0]
[1746981485880,0.13329539,2467.6,2467.2,8.0]
[1746981486081,0.13329539,2467.6,2467.2,8.45783809]
[1746981486284,0.13329539,2467.6,2467.3,0.04052214]
[1746981486481,0.7515,2468.0,2467.5,8.0]
[1746981486787,0.7515,2468.0,2467.5,14.03090844]
[1746981487263,0.55,2467.6,2466.3,0.2114029]
[1746981487457,0.7515,2466.7,2466.1,0.05]
[1746981487662,4.0181852,2466.5,2466.1,0.05]
[1746981488059,0.47696852,2466.6,2466.1,0.05]
[1746981488288,0.1125304,2466.5,2466.1,0.09054301]
[1746981488794,0.7515,2466.7,2466.1,0.09054301]
[1746981488795,0.7515,2466.7,2466.2,3.05]
[1746981488998,0.11238508,2466.4,2466.2,3.05]
[1746981489158,0.7515,2466.7,2466.3,8.0405422]
[1746981489365,0.7515,2466.7,2466.3,0.0405422]
[1746981489885,0.7515,2466.7,2466.3,8.0405422]
[1746981490464,0.7515,2466.7,2466.3,8.0]
[1746981491098,0.7515,2466.7,2466.4,0.04053898]
[1746981492193,0.7515,2466.7,2466.3,8.0]
[1746981492411,1.22846852,2466.7,2466.3,8.0]
[1746981492571,1.22846852,2466.7,2466.4,0.04054281]
[1746981493101,0.11238508,2466.6,2466.4,0.04054281]
[1746981493873,0.11238508,2466.6,2466.3,8.0]
[1746981494211,4.0181852,2466.5,2466.1,0.05]
[1746981494502,1.27167177,2466.4,2466.1,8.05]
[1746981494802,1.27167177,2466.4,2466.1,0.05]
[1746981494974,1.27167177,2466.4,2466.1,8.05]
[1746981496182,0.85861474,2466.4,2466.1,8.05]
[1746981498308,4.0181852,2466.2,2466.1,8.05]
[1746981498610,4.0181852,2466.2,2466.1,0.05]
[1746981498980,4.11796864,2466.2,2466.1,0.05]
[1746981501298,4.88276864,2466.2,2466.1,0.05]
[1746981501499,5.37509725,2466.2,2466.1,0.05]
[1746981501868,1.35691205,2466.2,2466.1,0.05]
[1746981504673,1.90691205,2466.2,2466.1,0.05]
[1746981505299,5.69487669,2466.2,2466.1,0.05]
[1746981505495,5.14487669,2466.2,2466.1,0.05]
[1746981505698,0.09978344,2466.2,2466.1,0.05]
[1746981505885,0.09978344,2466.2,2466.1,0.09054419]
[1746981506096,0.8186,2466.8,2466.1,0.09054419]
[1746981506505,0.07868226,2466.7,2466.1,0.09054419]
[1746981507003,0.8186,2466.8,2466.1,0.05]
[1746981507206,3.78796464,2466.7,2466.1,0.05]
[1746981507506,3.78796464,2466.7,2466.2,8.0]
[1746981507706,4.2486211,2466.7,2466.2,8.0]
[1746981508891,4.2486211,2466.7,2466.3,0.04054155]
[1746981509299,0.8186,2466.8,2466.3,0.04054155]
[1746981509882,4.02173411,2467.0,2466.3,0.04054155]
[1746981510086,0.8186,2467.1,2466.5,8.0]
[1746981511329,0.85911744,2467.4,2466.6,0.04053283]
[1746981511536,4.05191803,2468.0,2466.6,0.04053283]
[1746981511537,0.8186,2467.8,2466.8,8.0]
[1746981511746,0.8186,2468.3,2467.0,0.79]
[1746981511945,0.8186,2468.6,2467.3,0.79]
[1746981512225,0.8186,2468.9,2467.5,0.79]
[1746981512409,0.8186,2468.9,2467.7,0.79]
[1746981512410,4.02173411,2468.7,2467.7,0.79]
[1746981512589,0.04051744,2468.6,2467.7,0.79]
[1746981512792,0.04051744,2468.6,2467.9,8.0]
[1746981513892,0.04051744,2468.7,2467.9,8.0]
[1746981514095,0.8186,2468.9,2467.9,8.0]
[1746981514420,4.06225155,2468.8,2467.7,0.79]
[1746981514731,0.48808516,2468.7,2467.9,8.0]
[1746981514928,0.04051744,2468.8,2467.9,8.0]
[1746981515102,4.02173411,2468.7,2467.9,8.0]
[1746981515429,0.04051744,2468.6,2467.9,8.0]
[1746981515628,0.04051744,2468.6,2467.7,0.79]
[1746981515831,0.04051744,2468.6,2468.1,8.0]
[1746981516040,0.4467426,2468.6,2468.0,3.051]
[1746981516247,0.08635189,2468.5,2468.0,3.051]
[1746981516424,0.4467426,2468.6,2468.0,3.051]
[1746981516597,4.02173411,2468.5,2468.0,3.051]
[1746981517099,0.09805184,2468.4,2468.0,3.051]
[1746981517413,0.09805184,2468.4,2468.1,0.04051105]
[1746981517730,4.06225155,2468.8,2468.1,0.04051105]
[1746981517936,0.0973728,2468.3,2468.1,0.04051105]
[1746981518137,4.02173411,2468.5,2468.0,3.051]
[1746981518299,0.0973728,2468.2,2468.0,3.051]
[1746981518499,4.02173411,2468.5,2468.0,3.051]
[1746981518700,0.09717877,2468.4,2468.0,3.051]
[1746981521398,0.7885,2468.3,2468.0,3.051]
[1746981521730,0.09693623,2468.2,2468.0,3.051]
[1746981522144,0.7885,2468.3,2468.0,3.051]
[1746981522307,0.09693623,2468.1,2468.0,3.051]
[1746981522638,0.7885,2468.3,2468.0,3.051]
[1746981522843,1.31969767,2468.3,2468.0,3.051]
[1746981523004,0.09693623,2468.2,2468.0,3.051]
[1746981523408,1.31969767,2468.3,2468.0,3.051]
[1746981523650,0.09693623,2468.1,2468.0,11.051]
[1746981523826,0.59051744,2468.6,2468.0,3.051]
[1746981524026,4.02173411,2468.5,2468.0,3.051]
[1746981524232,4.11828226,2468.5,2468.0,3.051]
[1746981524942,4.02173411,2468.2,2468.0,3.051]
[1746981525149,0.55,2468.0,2467.4,3.038]
[1746981525454,1.32875815,2468.1,2467.4,11.07852298]
[1746981525656,0.09693623,2467.9,2467.4,11.038]
[1746981525876,0.8296,2468.1,2467.4,11.038]
[1746981526157,4.02173411,2467.9,2467.4,3.038]
[1746981526638,4.02173411,2467.9,2467.4,3.07852378]
[1746981526846,0.09533522,2467.8,2467.4,3.038]
[1746981527047,0.09533522,2467.8,2467.4,11.038]
[1746981528714,4.06225155,2467.9,2467.4,11.038]
[1746981528913,0.09533522,2467.6,2467.4,11.038]
[1746981529111,4.06225155,2467.9,2467.4,11.038]
[1746981529355,0.09533522,2467.8,2467.4,11.038]
[1746981531330,3.78252249,2467.7,2467.4,11.038]
[1746981534212,3.78252249,2468.2,2467.5,0.04052302]
[1746981534415,3.78252249,2468.2,2467.4,3.038]
[1746981534633,0.09130838,2468.1,2467.4,3.038]
[1746981535240,0.09130838,2468.1,2467.6,0.7588]
[1746981535447,0.09130838,2468.1,2467.7,0.04051678]
[1746981535643,3.78252249,2468.2,2467.7,0.04051678]
[1746981535842,0.09130838,2468.0,2467.7,0.04051678]
[1746981536046,3.78252249,2468.6,2467.6,0.7588]
[1746981536252,3.78252249,2468.3,2467.7,3.032]
[1746981536754,0.0918421,2468.2,2467.8,8.0]
[1746981536961,3.78252249,2468.0,2467.8,8.0]
[1746981537336,3.78252249,2468.3,2467.8,8.04051801]
[1746981537724,0.09261834,2468.2,2467.8,8.0]
[1746981537925,3.78252249,2468.0,2467.6,0.7588]
[1746981538439,0.09266685,2467.9,2467.6,0.7588]
[1746981538639,3.78252249,2468.0,2467.6,0.7588]
[1746981540256,3.78252249,2468.3,2467.7,0.04051753]
[1746981540645,0.09465643,2468.2,2467.7,0.04051753]
[1746981543265,3.78252249,2468.3,2467.7,0.04051753]
[1746981543449,0.09465643,2468.2,2467.7,0.04051753]
[1746981543655,3.78252249,2468.3,2467.7,0.04051753]
[1746981544036,0.09465643,2468.2,2467.7,0.04051753]
[1746981544367,3.78252249,2468.3,2467.7,0.04051753]
[1746981544579,3.78252249,2468.3,2467.8,3.038]
[1746981544868,0.09465643,2468.2,2467.9,0.04051428]
[1746981545074,3.78252249,2468.3,2467.9,0.04051428]
[1746981545267,0.09465643,2468.2,2467.9,0.04051428]
[1746981545469,3.78252249,2468.3,2467.9,0.04051428]
[1746981545673,0.09465643,2468.2,2467.9,0.04051429]
[1746981545973,3.78252249,2468.3,2467.9,0.04051429]
[1746981546184,3.78252249,2468.6,2467.9,0.04051429]
[1746981546677,0.09465643,2468.5,2467.9,0.04051429]
[1746981546972,0.09465643,2468.5,2467.9,8.04051429]
[1746981550590,4.60292249,2469.1,2468.1,8.0]
[1746981550979,0.09877926,2469.0,2468.1,8.0]
[1746981551885,0.09877926,2469.0,2468.2,0.04050209]
[1746981552390,3.83252249,2469.4,2468.1,8.0]
[1746981552685,3.78252249,2469.1,2468.1,8.0]
[1746981552985,3.78252249,2468.5,2468.0,0.8248]
[1746981553170,3.78252249,2468.2,2468.0,0.8248]
[1746981553570,0.69133303,2468.1,2468.0,0.8248]
[1746981553770,0.10081559,2468.1,2468.0,0.8248]
[1746981556051,0.14133303,2468.1,2468.0,0.8248]
[1746981557256,0.14133303,2468.1,2467.4,8.0]
[1746981557457,3.78252249,2467.8,2467.4,8.0]
[1746981557681,0.09708179,2467.7,2467.4,8.0]
[1746981557868,3.78252249,2467.8,2467.4,8.0]
[1746981558066,0.09708179,2467.7,2467.4,8.0]
[1746981558358,0.04051744,2468.1,2467.5,0.04052251]
[1746981558359,3.82303993,2468.1,2467.5,0.04052251]
[1746981558751,0.09708179,2468.0,2467.5,0.04052251]
[1746981559594,0.09708179,2468.0,2467.4,14.04]
[1746981559762,0.09708179,2468.0,2467.5,0.04051706]
[1746981560101,3.78252249,2469.1,2467.7,8.0]
[1746981560394,3.78252249,2468.8,2467.9,8.0]
[1746981560762,0.07760402,2468.7,2467.9,8.0]
[1746981561263,3.78252249,2468.8,2467.9,8.0]
[1746981561465,0.07760402,2468.7,2467.9,8.0]
[1746981561665,0.07760402,2468.7,2467.9,11.026]
[1746981561666,3.78252249,2468.2,2467.9,11.026]
[1746981564196,0.07978836,2468.1,2467.9,11.026]
[1746981565067,3.78252249,2468.2,2467.9,11.026]
[1746981565268,4.16482648,2468.2,2467.9,3.026]
[1746981565469,0.6703058,2468.1,2467.4,3.026]
[1746981565681,3.78252249,2467.8,2467.4,11.026]
[1746981565997,0.07804095,2467.7,2467.4,11.026]
[1746981566401,3.78252249,2467.8,2467.4,11.026]
[1746981566701,0.07804095,2467.7,2467.4,11.026]
[1746981566861,3.78252249,2467.8,2467.4,11.026]
[1746981567065,0.07804095,2467.7,2467.4,11.026]
[1746981567370,3.78252249,2467.8,2467.4,11.026]
[1746981567905,0.19969287,2469.8,2467.4,11.026]
[1746981567906,0.07804095,2467.7,2467.5,8.04052257]
[1746981568199,3.82303993,2468.7,2467.7,8.0]
[1746981568375,3.05851744,2469.1,2467.8,3.05850993]
[1746981568575,0.07702139,2468.6,2467.9,8.0]
[1746981568889,3.78252249,2468.9,2468.1,8.0]
[1746981569199,0.07702139,2468.8,2468.2,0.04050698]
[1746981570369,3.78252249,2469.1,2468.1,8.0]
[1746981570615,0.08333158,2468.7,2468.2,0.04050403]
[1746981570791,3.78252249,2469.1,2468.2,0.04050403]
[1746981571167,0.0833801,2469.0,2468.2,0.04050403]
[1746981573971,0.0833801,2469.0,2468.3,8.0]
[1746981574172,0.0833801,2469.0,2468.4,3.05550226]
[1746981574373,0.0833801,2469.0,2468.5,8.0]
[1746981574573,3.78252249,2469.2,2468.6,3.06649923]
[1746981574996,0.08464166,2469.1,2468.7,14.04]
[1746981575291,0.05,2469.4,2468.9,8.0]
[1746981575490,0.05,2469.4,2469.0,3.015]
[1746981576488,3.78252249,2469.2,2469.0,3.015]
[1746981576819,0.12651741,2469.1,2468.9,8.0]
[1746981577018,3.78252249,2469.0,2468.9,8.0]
[1746981577715,4.25537471,2469.0,2468.9,8.0]
[1746981578202,3.86852246,2469.0,2468.9,8.0]
[1746981579378,0.08599997,2469.0,2468.9,8.0]
[1746981579582,0.08599997,2469.0,2468.9,8.04049856]
[1746981579810,0.05,2469.4,2468.9,8.04049856]
[1746981580014,0.08599997,2469.0,2468.9,8.04049856]
[1746981580512,0.05,2469.4,2468.9,8.04049856]
[1746981580715,0.08599997,2469.3,2468.9,8.04049856]
[1746981581106,3.78252249,2469.2,2468.9,8.04049856]
[1746981581303,3.78252249,2469.2,2468.9,8.0]
[1746981581502,0.08599997,2469.1,2468.9,8.0]
[1746981582311,0.12651741,2469.1,2468.9,8.0]
[1746981583785,0.08599997,2469.1,2468.9,8.0]
[1746981583986,0.08599997,2469.1,2468.8,3.025]
[1746981586598,0.51336966,2469.1,2468.8,3.025]
[1746981586803,3.78252249,2468.9,2468.3,3.012]
[1746981587118,0.08700002,2468.8,2468.4,8.0]
[1746981587283,0.12751746,2468.8,2468.4,8.0]
[1746981589726,3.83252249,2469.4,2468.4,8.0]
[1746981589895,0.08504051,2469.3,2468.5,0.04050071]
[1746981590090,0.08504051,2469.3,2468.6,3.008]
[1746981590291,0.08504051,2469.3,2468.7,0.0404997]
[1746981592893,0.08504051,2469.3,2468.7,8.0404997]
[1746981594320,3.83252249,2469.4,2468.7,8.0]
[1746981594519,0.08610786,2469.3,2468.7,8.0]
[1746981594917,0.08610786,2469.3,2468.7,14.04]
[1746981597643,0.08610786,2469.3,2468.8,0.04049653]
[1746981597843,0.08610786,2469.3,2469.0,8.0]
[1746981598047,3.83252249,2469.4,2469.1,0.04049652]
[1746981598237,0.08610786,2469.2,2469.1,0.04049652]
[1746981598437,3.83252249,2469.4,2469.0,8.04049654]
[1746981598847,0.08610786,2469.3,2469.0,8.04049654]
[1746981599849,0.08610786,2469.3,2469.0,8.0]
[1746981600231,0.05,2469.4,2469.0,8.0]
[1746981601014,3.78252249,2469.3,2469.0,8.0]
[1746981601416,3.78252249,2469.3,2468.9,3.012]
[1746981601613,3.78252249,2469.0,2468.9,11.012]
[1746981601860,3.78252249,2469.0,2468.9,8.0]
[1746981602240,3.86436613,2469.0,2468.9,8.0]
[1746981602836,3.86436613,2469.0,2468.4,3.012]
[1746981603039,3.78252249,2468.5,2468.4,3.012]
[1746981603242,3.78252249,2468.5,2468.4,11.012]
[1746981604456,4.64963368,2469.4,2468.4,11.012]
[1746981604457,3.83252249,2469.4,2468.5,11.782522]
[1746981604626,3.83252249,2469.4,2468.7,8.0]
[1746981604952,3.83252249,2469.4,2468.6,6.08049429]
[1746981604953,3.83252249,2469.4,2468.9,8.0]
[1746981605147,0.05,2469.4,2469.1,8.0]
[1746981605455,0.05,2469.4,2469.2,0.04049478]
[1746981607932,0.05,2469.4,2469.1,14.04]
[1746981608546,0.05,2469.4,2469.2,0.04048863]
[1746981608855,0.05,2469.4,2469.1,14.04]
[1746981609219,0.05,2469.4,2469.3,8.0]
[1746981612975,0.05,2469.4,2469.3,14.04]
[1746981613151,3.83252249,2469.4,2469.1,8.0]
[1746981613571,3.83252249,2469.4,2469.1,8.04049509]
[1746981613728,3.83252249,2469.4,2469.2,0.45783809]
[1746981613929,3.83252249,2469.4,2469.1,8.04049509]
[1746981614439,3.83252249,2469.4,2469.1,8.0]
[1746981615065,3.83252249,2469.4,2469.1,8.0404951]
[1746981615625,3.83252249,2469.4,2469.1,8.0]
[1746981617942,0.05,2469.4,2469.1,8.0]
[1746981618467,0.05,2469.4,2469.2,0.04049189]
[1746981621227,0.8311,2469.3,2468.3,6.8686]
[1746981621441,3.83252249,2469.4,2468.3,0.8286]
[1746981621442,0.8311,2468.8,2468.3,0.8286]
[1746981621642,0.8311,2469.2,2468.7,0.04050597]
[1746981621932,0.8311,2469.2,2468.4,8.0]
[1746981621933,0.8311,2468.9,2468.4,8.0]
[1746981622147,0.87161744,2468.9,2468.4,8.0]
[1746981622378,0.87161744,2468.9,2468.3,0.8286]
[1746981622551,0.87161744,2468.9,2468.4,8.0]
[1746981622757,0.87161744,2468.9,2468.3,0.8286]
[1746981623243,0.87161744,2468.9,2468.4,8.0]
[1746981623581,0.8311,2468.9,2468.4,8.04050661]
[1746981623723,3.78252249,2469.0,2468.6,1.73193507]
[1746981624379,3.78252249,2469.0,2468.6,1.69142846]
[1746981624872,3.78252249,2469.0,2468.6,9.69142846]
[1746981625227,3.78252249,2469.0,2468.6,9.73193246]
[1746981625439,3.78252249,2469.0,2468.7,0.45783809]
[1746981625658,3.78252249,2469.0,2468.6,9.69142846]
[1746981625842,3.78252249,2469.0,2468.6,9.73193246]
[1746981626131,3.78252249,2469.0,2468.6,9.69142846]
[1746981626332,3.78252249,2469.0,2468.6,9.73193247]
[1746981627044,3.78252249,2469.0,2468.6,9.69142846]
[1746981628779,3.78252249,2469.0,2468.6,9.73193182]
[1746981630054,4.55592249,2469.3,2468.7,0.7736]
[1746981630271,0.05,2469.4,2468.8,0.04049814]
[1746981630433,0.05,2469.4,2468.9,3.02949321]
[1746981631629,0.17527458,2469.3,2468.9,3.02949321]
[1746981631836,0.17527458,2469.3,2469.0,0.7736]
[1746981632031,0.17527458,2469.3,2469.2,8.0]
[1746981632269,0.17527458,2469.3,2469.2,8.7736]
[1746981632767,0.05,2469.4,2469.2,8.7736]
[1746981632975,0.05,2469.4,2469.3,0.04048879]
[1746981633146,0.05,2469.4,2469.2,8.0]
[1746981633349,0.05,2469.4,2469.2,10.999]
[1746981633651,0.05,2469.4,2469.2,8.0]
[1746981637081,0.05,2469.4,2469.1,8.0]
[1746981638283,3.78252249,2469.3,2468.8,0.7736]
[1746981638456,3.78252249,2469.0,2468.8,10.999]
[1746981638791,3.78252249,2469.3,2468.8,10.999]
[1746981639080,3.78252249,2469.3,2468.9,0.04049957]
[1746981639278,0.05,2469.4,2469.0,0.787]
[1746981639465,0.05,2469.4,2469.1,8.0]
[1746981640059,0.16310957,2469.3,2469.1,8.0]
[1746981640255,0.16310957,2469.3,2469.1,8.04049064]
[1746981640449,0.16310957,2469.3,2469.2,0.787]
[1746981641380,0.16310957,2469.3,2469.2,17.811]
[1746981641550,0.05,2469.4,2469.3,8.0]
[1746981641880,0.05,2469.4,2469.2,9.811]
[1746981642058,0.05,2469.4,2469.3,8.0]
[1746981643580,0.2147623,2469.4,2469.3,8.04049036]
[1746981644352,0.2147623,2469.4,2469.3,8.0]
[1746981645255,0.2147623,2469.4,2469.3,8.7766]
[1746981645469,0.2147623,2469.4,2469.3,15.01853763]
[1746981645689,4.65832249,2470.4,2469.4,0.7766]
[1746981645872,3.83252249,2470.4,2469.7,0.7766]
[1746981646071,3.83252249,2470.4,2469.9,8.0]
[1746981646264,0.16524831,2470.3,2469.9,14.04]
[1746981646855,3.78252249,2470.1,2469.9,14.04]
[1746981647287,0.16670611,2470.0,2469.9,14.04]
[1746981647874,3.78252249,2470.1,2469.9,14.04]
[1746981648082,0.16724055,2470.0,2469.9,14.04]
[1746981648752,0.16724055,2470.0,2469.9,17.024]
[1746981649091,0.99704055,2470.0,2469.9,9.024]
[1746981649286,0.16724055,2470.0,2469.9,9.024]
[1746981649667,4.66232249,2470.4,2469.9,9.024]
[1746981649869,4.66232249,2470.4,2469.9,9.06448267]
[1746981650091,0.17122596,2470.3,2469.9,9.06448267]
[1746981650587,0.17122596,2470.3,2469.9,9.024]
[1746981650786,0.2117434,2470.3,2469.9,9.024]
[1746981651855,0.2117434,2470.3,2469.9,2.984]
[1746981653213,0.8298,2470.0,2469.9,2.984]
[1746981653393,1.04100895,2470.0,2469.5,2.984]
[1746981653594,3.78252249,2469.8,2469.6,8.0]
[1746981653894,0.17010841,2469.7,2469.6,8.0]
[1746981654386,0.76062585,2469.7,2469.5,2.984]
[1746981654591,0.7592,2469.6,2469.5,2.984]
[1746981654760,0.16831018,2469.6,2469.5,2.984]
[1746981655099,4.54172249,2469.8,2469.5,2.984]
[1746981655256,0.16831018,2469.6,2469.5,10.984]
[1746981655458,4.54172249,2470.1,2469.6,8.0]
[1746981655767,0.16874764,2470.0,2469.5,3.806]
[1746981657960,0.796,2469.9,2469.5,2.984]
[1746981658160,0.796,2469.9,2469.6,8.0]
[1746981658390,3.78252249,2470.1,2469.7,0.04048616]
[1746981658705,3.78252249,2470.1,2469.6,8.0]
[1746981659059,0.04051744,2470.5,2469.8,8.0]
[1746981659060,0.16986544,2470.0,2469.8,8.0]
[1746981659410,3.83252249,2470.4,2469.9,0.04048311]
[1746981659580,0.16986544,2470.3,2469.9,0.04048311]
[1746981661761,0.16986544,2470.3,2470.1,0.7706]
[1746981661964,0.05,2470.4,2470.2,3.79506851]
[1746981662298,0.05,2470.4,2470.3,10.973]
[1746981662465,0.05,2470.4,2470.3,8.0]
[1746981662660,0.05,2470.4,2470.2,2.984]
[1746981662899,0.05,2470.4,2470.2,10.984]
[1746981663102,0.05,2470.4,2470.1,9.013]
[1746981663103,0.96180999,2470.3,2469.7,0.7706]
[1746981663266,3.78252249,2470.2,2469.6,8.04048474]
[1746981663459,3.82303993,2470.2,2469.5,3.7546]
[1746981663857,0.15707015,2470.1,2469.6,8.0]
[1746981666666,0.8061,2469.8,2469.5,2.984]
[1746981667090,3.78252249,2469.9,2469.5,2.984]
[1746981667799,0.55,2470.2,2469.6,0.04049019]
[1746981667800,4.58862249,2470.2,2469.6,0.04049019]
[1746981667976,0.15707015,2470.1,2469.6,0.04049019]
[1746981668202,3.78252249,2469.9,2469.5,2.984]
[1746981668382,0.96317015,2469.8,2469.5,2.984]
[1746981669197,0.96317015,2469.8,2469.1,20.609]
[1746981669401,3.78252249,2469.6,2469.1,6.04]
[1746981669706,0.15707015,2469.5,2469.1,6.04]
[1746981670268,0.15707015,2469.5,2469.3,0.7957]
[1746981670464,0.15707015,2469.5,2469.4,0.04048753]
[1746981670669,0.7756,2470.1,2469.4,2.969]
[1746981670900,3.78252249,2470.2,2469.6,0.7957]
[1746981671102,3.78252249,2470.2,2469.5,11.01048549]
[1746981671103,3.78252249,2470.2,2469.5,10.97]
[1746981671306,0.05,2470.4,2469.1,6.8357]
[1746981671307,0.7756,2469.8,2469.1,6.8357]
[1746981671609,3.78252249,2469.9,2468.8,2.97]
[1746981671610,0.7756,2469.5,2468.8,2.97]
[1746981671905,0.81611744,2469.5,2468.9,8.0]
[1746981672670,0.7756,2469.5,2469.0,0.04049665]
[1746981673296,0.15551489,2469.4,2468.8,2.97]
[1746981673479,0.15551489,2469.4,2468.9,0.04049911]
[1746981673887,0.15551489,2469.4,2468.8,2.97]
[1746981674406,0.15551489,2469.4,2468.9,0.04049912]
[1746981674578,0.63093037,2469.4,2468.9,0.04049912]
[1746981674778,0.7999,2469.2,2468.8,2.97]
[1746981675167,0.15551489,2469.1,2468.8,2.97]
[1746981675410,3.82303993,2469.0,2468.8,2.97]
[1746981675718,0.14875965,2468.9,2468.8,2.97]
[1746981678000,0.04051744,2469.1,2468.8,2.97]
[1746981678181,0.1472523,2469.0,2468.8,2.97]
[1746981678514,0.1472523,2469.0,2468.6,1.69142846]
[1746981678880,0.84041744,2469.2,2468.6,1.69142846]
[1746981679079,0.13223854,2468.9,2468.6,1.69142846]
[1746981679383,0.13223854,2468.8,2468.6,1.69142846]
[1746981679593,0.7513,2468.7,2468.6,1.69142846]
[1746981679791,0.79181744,2468.9,2468.6,1.69142846]
[1746981679979,0.13184905,2468.8,2468.6,1.69142846]
[1746981680720,5.08382249,2468.7,2468.6,1.69142846]
[1746981681017,13.25560469,2468.7,2468.6,1.69142846]
[1746981681197,17.2658022,2468.7,2468.6,1.69142846]
[1746981681408,13.21508725,2468.7,2468.6,1.69142846]
[1746981681597,14.53659597,2468.7,2468.6,1.69142846]
[1746981683796,14.53659597,2468.7,2466.1,2.13603275]
[1746981683797,0.55,2468.4,2467.2,0.8188]
[1746981683990,3.78252249,2467.9,2467.3,0.04052654]
[1746981684192,0.16939576,2467.8,2467.2,0.8188]
[1746981684431,3.78252249,2467.5,2467.1,0.05]
[1746981684933,0.71734949,2467.4,2467.1,0.05]
[1746981685138,0.813,2467.3,2467.1,0.05]
[1746981685343,4.37303993,2467.2,2467.1,0.05]
[1746981685650,0.12683205,2467.2,2467.1,0.05]
[1746981685952,0.813,2467.6,2467.1,0.05]
[1746981686246,0.12683205,2467.2,2467.1,8.05]
[1746981686539,4.59552249,2467.9,2467.1,11.014]
[1746981686839,0.11786788,2467.8,2467.2,0.04052443]
[1746981687293,0.09752054,2467.8,2467.2,0.04052443]
[1746981687703,0.09752054,2467.8,2467.4,8.0]
[1746981687905,0.09752054,2467.8,2467.6,8.8188]
[1746981688106,3.78252249,2468.2,2467.6,14.8588]
[1746981688554,0.1101555,2468.1,2467.6,14.8588]
[1746981689232,0.813,2468.0,2467.6,6.04]
[1746981689395,1.2835678,2468.0,2467.6,6.04]
[1746981689590,0.1101555,2467.9,2467.6,6.04]
[1746981689844,0.813,2468.0,2467.6,6.04]
[1746981690140,3.93319543,2467.9,2467.1,0.05]
[1746981690306,3.93319543,2467.9,2467.1,8.09052574]
[1746981690705,3.93319543,2467.9,2467.1,14.09]
[1746981690921,0.1101555,2467.9,2467.2,0.8188]
[1746981691127,4.63603993,2468.2,2467.3,0.04052088]
[1746981691443,3.78252249,2467.9,2467.2,0.8188]
[1746981691647,0.1101555,2467.8,2467.2,0.8188]
[1746981693048,3.78252249,2467.9,2467.2,0.8188]
[1746981693393,0.1101555,2467.8,2467.2,0.8188]
[1746981693937,0.1101555,2467.8,2467.3,8.0]
[1746981694498,0.1101555,2467.8,2467.3,10.972]
[1746981695321,0.795,2467.7,2467.2,6.8588]
[1746981695507,0.795,2467.7,2467.3,2.972]
[1746981695839,0.1101555,2467.6,2467.3,2.972]
[1746981696447,0.1101555,2467.6,2467.1,0.05]
[1746981696448,5.12752249,2467.5,2467.1,0.05]
[1746981696603,0.56428524,2467.4,2467.1,0.05]
[1746981696803,0.1101555,2467.3,2467.1,0.05]
[1746981697150,0.04051744,2467.4,2467.1,0.05]
[1746981697336,0.1101555,2467.2,2467.1,0.05]
[1746981697511,0.04051744,2467.4,2467.1,0.05]
[1746981697713,0.1101555,2467.2,2467.1,0.05]
[1746981697942,0.04051744,2467.4,2467.1,0.05]
[1746981698107,0.1101555,2467.2,2467.1,0.05]
[1746981698323,0.50232143,2467.4,2467.1,0.05]
[1746981698524,0.1101555,2467.2,2467.1,0.05]
[1746981698739,0.50232143,2467.4,2467.1,0.05]
[1746981698941,0.1101555,2467.2,2467.1,0.05]
[1746981699245,0.10498501,2467.2,2467.1,0.05]
[1746981699446,4.59702249,2467.2,2467.1,0.05]
[1746981699624,5.21194189,2467.2,2467.1,0.05]
[1746981699950,1.4294194,2467.2,2467.1,0.05]
[1746981700133,0.91948501,2467.2,2467.1,0.05]
[1746981700334,4.7020075,2467.2,2467.1,0.05]
[1746981701854,0.91948501,2467.2,2467.1,0.05]
[1746981702038,0.10498501,2467.2,2467.1,0.05]
[1746981702239,4.59702249,2467.5,2467.1,0.05]
[1746981702424,0.10444832,2467.4,2467.1,0.05]
[1746981702630,0.14496576,2467.4,2467.1,0.05]
[1746981703045,0.10444832,2467.4,2467.1,0.05]
[1746981704447,0.7783,2467.7,2467.1,0.05]
[1746981704654,0.10488744,2467.6,2467.2,0.8332]
[1746981704812,4.56082249,2468.5,2467.4,0.8332]
[1746981705147,0.09738535,2468.4,2467.7,0.8332]
[1746981705346,0.09738535,2468.4,2467.5,9.03851604]
[1746981705347,0.09738535,2468.4,2468.0,0.8332]
[1746981705552,0.04051744,2468.7,2468.1,8.0]
[1746981705728,4.60133993,2468.8,2468.1,8.0]
[1746981705911,4.60133993,2468.8,2468.1,10.958]
[1746981706115,0.09738535,2468.7,2468.1,10.958]
[1746981710951,0.09738535,2468.7,2468.2,0.04050924]
[1746981711247,3.82303993,2468.8,2468.1,10.958]
[1746981711453,0.09738535,2468.7,2468.1,10.958]
[1746981712015,0.09738535,2468.7,2468.1,10.955]
[1746981713020,4.04944286,2469.5,2468.1,10.955]
[1746981713021,4.56082249,2469.3,2468.3,0.8332]
[1746981713222,0.13790279,2469.2,2468.5,8.0]
[1746981713551,0.09738535,2469.2,2468.8,0.83]
[1746981713868,0.04051744,2469.4,2468.9,0.04049955]
[1746981714020,0.09738535,2469.3,2468.9,0.04049955]
[1746981714222,0.04051744,2469.9,2469.2,0.83]
[1746981714462,0.7928,2470.0,2469.2,0.83]